bitfinex/quotes_BTCUSD_20250831
["timestamp","ask_amount","ask_price","bid_price","bid_amount"]
[1756623767347,0.18363623,108920.0,108910.0,0.52781429]
[1756623767486,0.84720601,108920.0,108910.0,0.52781429]
[1756623768342,0.84437679,108920.0,108910.0,0.52781429]
[1756623768584,0.19278434,108930.0,108920.0,0.183621]
[1756623768585,0.1836099,108930.0,108920.0,0.183621]
[1756623768776,0.1836099,108930.0,108920.0,0.34906894]
[1756623768981,0.1856099,108930.0,108920.0,0.35116894]
[1756623769153,0.1856099,108930.0,108920.0,0.37877093]
[1756623769779,0.002,108930.0,108920.0,0.45343093]
[1756623769956,0.33178489,108930.0,108920.0,0.60443092]
[1756623770159,0.51538903,108930.0,108920.0,0.45443091]
[1756623770353,0.33178489,108930.0,108920.0,0.45443091]
[1756623770564,0.51538903,108930.0,108920.0,0.48751567]
[1756623770772,0.51538903,108930.0,108920.0,0.48651567]
[1756623771181,0.51538903,108930.0,108920.0,0.49051567]
[1756623771521,0.51538903,108930.0,108920.0,0.45743091]
[1756623771687,0.51538903,108930.0,108920.0,0.45643091]
[1756623771887,0.51538903,108930.0,108920.0,0.45943091]
[1756623772081,0.51538903,108930.0,108920.0,0.4594309]
[1756623773602,0.18360414,108930.0,108920.0,0.4594309]
[1756623773948,0.51538903,108930.0,108920.0,0.4594309]
[1756623774514,0.51538903,108930.0,108920.0,0.6133109]
[1756623774916,0.18360414,108930.0,108920.0,0.6133109]
[1756623775116,0.51538903,108930.0,108920.0,0.6133109]
[1756623776662,0.51538903,108930.0,108920.0,0.4594309]
[1756623776861,0.51538903,108930.0,108920.0,0.6133109]
[1756623777068,0.18360414,108930.0,108920.0,0.6133109]
[1756623777261,0.33178489,108930.0,108920.0,0.61331089]
[1756623778401,0.33178489,108930.0,108920.0,0.66286583]
[1756623779355,0.33178489,108930.0,108920.0,0.61331088]
[1756623780194,0.51538903,108930.0,108920.0,0.61331088]
[1756623780390,0.18358729,108940.0,108920.0,0.61331087]
[1756623780643,0.51537218,108940.0,108930.0,0.09298001]
[1756623780972,0.51736218,108940.0,108930.0,0.15563543]
[1756623781390,0.18557729,108940.0,108930.0,0.15563543]
[1756623781600,0.18857729,108940.0,108930.0,0.27578434]
[1756623781772,0.85214707,108940.0,108930.0,0.27578434]
[1756623782219,0.85214707,108940.0,108930.0,0.27578433]
[1756623782575,0.85214707,108940.0,108930.0,0.27778433]
[1756623783644,0.84914707,108940.0,108930.0,0.27778433]
[1756623783845,0.84914707,108940.0,108930.0,0.28078433]
[1756623784472,0.84914707,108940.0,108930.0,0.32227305]
[1756623787812,0.84914707,108940.0,108930.0,0.16839305]
[1756623788012,0.84914707,108940.0,108930.0,0.32223305]
[1756623788436,0.84914707,108940.0,108930.0,0.32223304]
[1756623788848,0.18557729,108940.0,108930.0,0.32223304]
[1756623789041,0.84914707,108940.0,108930.0,0.32223304]
[1756623789503,0.60745714,108940.0,108930.0,0.32223304]
[1756623789694,0.60813714,108940.0,108930.0,0.32223304]
[1756623790080,0.79173983,108940.0,108930.0,0.32223304]
[1756623790292,0.79173983,108940.0,108930.0,0.32223303]
[1756623791272,0.79173983,108940.0,108930.0,0.38729868]
[1756623792239,0.79173983,108940.0,108930.0,0.23345868]
[1756623792461,0.79173983,108940.0,108930.0,0.38729868]
[1756623794583,0.79173983,108940.0,108930.0,0.32223303]
[1756623797235,0.79173983,108940.0,108930.0,0.16839303]
[1756623797515,0.79173983,108940.0,108930.0,0.32223303]
[1756623797764,0.18360269,108940.0,108930.0,0.32728302]
[1756623797978,0.51538758,108940.0,108930.0,0.51088716]
[1756623798193,0.51538758,108940.0,108930.0,0.59918348]
[1756623798409,0.51538758,108940.0,108930.0,0.59918347]
[1756623799193,0.18360269,108940.0,108930.0,0.59918347]
[1756623799546,0.51538758,108940.0,108930.0,0.59918347]
[1756623799839,0.51538758,108940.0,108930.0,0.59918346]
[1756623800286,0.51538758,108940.0,108930.0,0.59918345]
[1756623800967,0.20188466,108950.0,108940.0,0.33358729]
[1756623801196,0.53366955,108950.0,108940.0,0.35417315]
[1756623801392,0.53366955,108950.0,108940.0,0.20417314]
[1756623801565,0.20188466,108950.0,108940.0,0.20417314]
[1756623801763,0.52454921,108950.0,108940.0,0.41535843]
[1756623801972,0.52454921,108950.0,108940.0,0.19761225]
[1756623802249,0.52502616,108950.0,108940.0,0.38119954]
[1756623802413,0.52502616,108950.0,108940.0,0.19761225]
[1756623803260,0.19324127,108950.0,108940.0,0.38419954]
[1756623803434,0.52502616,108950.0,108940.0,0.38419954]
[1756623803788,0.52502616,108950.0,108940.0,0.28890857]
[1756623804763,0.52502616,108950.0,108940.0,0.28890856]
[1756623806919,0.19324127,108950.0,108940.0,0.47249585]
[1756623807096,0.18406275,108950.0,108940.0,0.47249585]
[1756623807238,0.18406275,108950.0,108940.0,0.47249584]
[1756623807651,0.18406275,108950.0,108940.0,0.62629583]
[1756623808151,0.51782764,108950.0,108940.0,0.44270854]
[1756623808362,0.51782764,108950.0,108940.0,0.62629583]
[1756623808558,0.51584764,108950.0,108940.0,0.62629583]
[1756623809059,0.51584764,108950.0,108940.0,0.28890854]
[1756623809262,0.51584764,108950.0,108940.0,0.44270854]
[1756623809500,0.51584764,108950.0,108940.0,0.44270853]
[1756623809650,0.51584764,108950.0,108940.0,0.62629582]
[1756623809895,0.18406275,108950.0,108940.0,0.62629582]
[1756623810099,0.51584764,108950.0,108940.0,0.62629582]
[1756623810720,0.18404739,108950.0,108940.0,0.80428071]
[1756623810951,0.18404739,108950.0,108940.0,0.9580807]
[1756623811131,0.18404739,108950.0,108940.0,0.6262958]
[1756623811339,0.51583228,108950.0,108940.0,0.6262958]
[1756623811831,0.51583228,108950.0,108940.0,0.62629579]
[1756623814536,0.51583228,108950.0,108940.0,0.62629578]
[1756623815205,0.51583228,108950.0,108940.0,0.47249578]
[1756623815516,0.51583228,108950.0,108940.0,0.62629578]
[1756623817348,0.18404739,108950.0,108940.0,0.62629578]
[1756623820870,0.51583228,108950.0,108940.0,0.62629578]
[1756623823574,0.18602739,108950.0,108940.0,0.62625578]
[1756623823780,0.51781228,108950.0,108940.0,0.62625577]
[1756623824306,0.18404739,108950.0,108940.0,0.62625577]
[1756623824538,0.51583228,108950.0,108940.0,0.62625577]
[1756623828945,0.18404739,108950.0,108940.0,0.62625577]
[1756623829139,0.51583228,108950.0,108940.0,0.62625577]
[1756623829605,0.51583228,108950.0,108940.0,0.67581072]
[1756623829819,0.51583228,108950.0,108940.0,0.67581071]
[1756623830512,0.18404739,108950.0,108940.0,0.67581071]
[1756623830719,0.51583228,108950.0,108940.0,0.67581071]
[1756623830928,0.51779228,108950.0,108940.0,0.67070071]
[1756623831366,0.51779228,108950.0,108940.0,0.67576071]
[1756623832169,0.51583228,108950.0,108940.0,0.67576071]
[1756623832950,0.18404739,108950.0,108940.0,0.67576071]
[1756623833125,0.51583228,108950.0,108940.0,0.67576071]
[1756623833542,0.51583228,108950.0,108940.0,0.52200071]
[1756623833747,0.51583228,108950.0,108940.0,0.67576071]
[1756623835932,0.51779228,108950.0,108940.0,0.33841341]
[1756623836136,0.51779228,108950.0,108940.0,0.33335341]
[1756623836332,0.51779228,108950.0,108940.0,0.48707341]
[1756623836537,0.51779228,108950.0,108940.0,0.33335341]
[1756623836792,0.51779228,108950.0,108940.0,0.48707341]
[1756623836995,0.85126717,108950.0,108940.0,0.34922214]
[1756623837137,0.51948228,108950.0,108940.0,0.34922214]
[1756623837342,0.51779228,108950.0,108940.0,0.34922214]
[1756623837601,0.51779228,108950.0,108940.0,0.34922213]
[1756623838915,0.51779228,108950.0,108940.0,0.19550213]
[1756623839119,0.85126717,108950.0,108940.0,0.34922213]
[1756623839580,0.93956349,108950.0,108940.0,0.34922213]
[1756623840368,0.27599371,108950.0,108940.0,0.34922212]
[1756623840572,0.85126717,108950.0,108940.0,0.34922212]
[1756623844432,0.84957717,108950.0,108940.0,0.34922212]
[1756623844636,0.51583228,108950.0,108940.0,0.35428212]
[1756623845358,0.18404739,108950.0,108940.0,0.35428212]
[1756623845676,0.51583228,108950.0,108940.0,0.35428211]
[1756623845882,0.51583228,108950.0,108940.0,0.41717498]
[1756623846081,0.51583228,108950.0,108940.0,0.60076227]
[1756623846652,0.18404739,108950.0,108940.0,0.60076227]
[1756623846850,0.51583228,108950.0,108940.0,0.60076227]
[1756623847432,0.51583228,108950.0,108940.0,0.60076226]
[1756623847653,0.51585154,108960.0,108940.0,0.60076226]
[1756623847850,0.51535533,108950.0,108940.0,0.50473225]
[1756623848058,0.51535533,108950.0,108940.0,0.59771226]
[1756623848482,0.51535533,108950.0,108940.0,0.59776226]
[1756623849327,0.18357044,108950.0,108940.0,0.59776226]
[1756623849521,0.51535533,108950.0,108940.0,0.59776226]
[1756623850896,0.51535533,108950.0,108940.0,0.59976226]
[1756623851754,0.51535533,108950.0,108940.0,0.57316426]
[1756623851931,0.51535533,108950.0,108940.0,0.57216426]
[1756623852339,0.51535533,108950.0,108940.0,0.57516426]
[1756623854591,0.51535533,108950.0,108940.0,0.60817117]
[1756623854798,0.51535533,108950.0,108940.0,0.63576616]
[1756623855608,0.18357044,108950.0,108940.0,0.63576616]
[1756623855816,0.51535533,108950.0,108940.0,0.63576616]
[1756623856133,0.33178489,108950.0,108940.0,0.63576616]
[1756623856523,0.51535533,108950.0,108940.0,0.63576616]
[1756623857114,0.33178489,108950.0,108940.0,0.63576616]
[1756623857489,0.51535533,108950.0,108940.0,0.63576616]
[1756623857931,0.51535533,108950.0,108940.0,0.68532111]
[1756623860252,0.33178489,108950.0,108940.0,0.68532111]
[1756623861603,0.5158992,108960.0,108950.0,0.18357044]
[1756623861820,0.5178792,108960.0,108950.0,0.36476369]
[1756623862035,0.5178792,108960.0,108950.0,0.36798369]
[1756623862252,0.18609431,108960.0,108950.0,0.18657325]
[1756623862478,0.18609431,108960.0,108950.0,0.37014368]
[1756623862747,0.18609431,108960.0,108950.0,0.18657324]
[1756623862938,0.84966409,108960.0,108950.0,0.18657324]
[1756623863596,0.33223255,108960.0,108950.0,0.37014368]
[1756623863781,0.33223255,108960.0,108950.0,0.40315059]
[1756623863782,0.51578614,108960.0,108950.0,0.40315059]
[1756623864019,0.51578614,108960.0,108950.0,0.40415059]
[1756623864205,0.51578614,108960.0,108950.0,0.40415058]
[1756623864621,0.51578614,108960.0,108950.0,0.40515058]
[1756623868006,0.51533848,108960.0,108950.0,0.37214367]
[1756623868177,0.51533848,108960.0,108950.0,0.37214366]
[1756623868943,0.51533848,108960.0,108950.0,0.52582366]
[1756623871135,0.51533848,108960.0,108950.0,0.52582365]
[1756623871535,0.18355359,108960.0,108950.0,0.52582365]
[1756623871733,0.51533848,108960.0,108950.0,0.52582365]
[1756623874716,0.18355359,108960.0,108950.0,0.52582365]
[1756623874864,0.51533848,108960.0,108950.0,0.52582365]
[1756623875265,0.51533848,108960.0,108950.0,0.55883056]
[1756623878369,0.51533848,108960.0,108950.0,0.55883055]
[1756623878804,0.18355359,108960.0,108950.0,0.55883055]
[1756623878959,0.51533848,108960.0,108950.0,0.6083855]
[1756623879562,0.51533848,108960.0,108950.0,0.60838549]
[1756623881203,0.51533848,108960.0,108950.0,0.45470549]
[1756623881360,0.51731848,108960.0,108950.0,0.44932549]
[1756623881583,0.84910337,108960.0,108950.0,0.60300549]
[1756623881766,0.84910337,108960.0,108950.0,0.26575505]
[1756623881978,0.84910337,108960.0,108950.0,0.24998403]
[1756623883131,0.18553359,108960.0,108950.0,0.24998403]
[1756623883414,0.84910337,108960.0,108950.0,0.24998403]
[1756623883825,0.85079337,108960.0,108950.0,0.24998403]
[1756623883965,0.84910337,108960.0,108950.0,0.24998403]
[1756623884292,0.84910337,108960.0,108950.0,0.31472744]
[1756623885844,0.84910337,108960.0,108950.0,0.16104743]
[1756623886053,0.84910337,108960.0,108950.0,0.31468743]
[1756623887846,0.18553359,108960.0,108950.0,0.31468743]
[1756623888061,0.84910337,108960.0,108950.0,0.31468743]
[1756623888286,0.84910337,108960.0,108950.0,0.49825787]
[1756623888456,0.84910337,108960.0,108950.0,0.50147787]
[1756623888635,0.84910337,108960.0,108950.0,0.50363787]
[1756623891460,0.18553359,108960.0,108950.0,0.50363787]
[1756623891696,0.84910337,108960.0,108950.0,0.50363787]
[1756623892242,0.84910337,108960.0,108950.0,0.55319282]
[1756623894336,0.84910337,108960.0,108950.0,0.55319281]
[1756623898935,0.84910337,108960.0,108950.0,0.62379281]
[1756623900719,0.18553359,108960.0,108950.0,0.43484237]
[1756623900885,0.84910337,108960.0,108950.0,0.43484237]
[1756623901468,0.84910337,108960.0,108950.0,0.62154281]
[1756623901786,0.84910337,108960.0,108950.0,0.62351281]
[1756623905948,0.84910337,108960.0,108950.0,0.65110581]
[1756623906178,0.84910337,108960.0,108950.0,0.19449701]
[1756623906389,1.2274082,108960.0,108950.0,0.320504]
[1756623906587,0.89562331,108960.0,108950.0,0.320504]
[1756623907166,0.89562388,108960.0,108950.0,0.320504]
[1756623907961,0.89561841,108960.0,108950.0,0.320504]
[1756623908417,0.89392841,108960.0,108950.0,0.320504]
[1756623909227,0.89392841,108960.0,108950.0,0.32050399]
[1756623909431,0.23035863,108960.0,108950.0,0.32050399]
[1756623909604,0.89392841,108960.0,108950.0,0.50759709]
[1756623909815,0.89392841,108960.0,108950.0,0.36072709]
[1756623910212,0.87670037,108960.0,108950.0,0.36072709]
[1756623910805,0.87670037,108960.0,108950.0,0.51072709]
[1756623911005,0.87670037,108960.0,108950.0,0.36072709]
[1756623911648,0.87670037,108960.0,108950.0,0.51072709]
[1756623911827,0.87670037,108960.0,108950.0,0.36072709]
[1756623912042,0.87670037,108960.0,108950.0,0.51072709]
[1756623912242,0.87670037,108960.0,108950.0,0.36072709]
[1756623912610,0.87670037,108960.0,108950.0,0.51072709]
[1756623912862,0.87670037,108960.0,108950.0,0.32560399]
[1756623913429,0.87670037,108960.0,108950.0,0.47560399]
[1756623913643,0.87670037,108960.0,108950.0,0.32560399]
[1756623914891,0.87670037,108960.0,108950.0,0.47560399]
[1756623915059,0.87670037,108960.0,108950.0,0.32560399]
[1756623916049,0.87670037,108960.0,108950.0,0.17200399]
[1756623916305,0.87670037,108960.0,108950.0,0.32560399]
[1756623917029,0.87670037,108960.0,108950.0,0.17200399]
[1756623917266,0.87670037,108960.0,108950.0,0.32560399]
[1756623920193,0.8153715,108960.0,108950.0,0.32560399]
[1756623920562,0.8153715,108960.0,108950.0,0.32560398]
[1756623920759,0.8153715,108960.0,108950.0,0.37928272]
[1756623921190,0.8153715,108960.0,108950.0,0.22568272]
[1756623921387,0.8153715,108960.0,108950.0,0.37928272]
[1756623921587,0.23000547,108970.0,108950.0,0.56285316]
[1756623921820,0.21962279,108970.0,108960.0,0.09601001]
[1756623921989,0.55140768,108970.0,108960.0,0.33932289]
[1756623922426,0.55140768,108970.0,108960.0,0.33932288]
[1756623922962,0.86597825,108970.0,108960.0,0.36691588]
[1756623923345,0.86597825,108970.0,108960.0,0.31064056]
[1756623924115,0.53419336,108970.0,108960.0,0.31064056]
[1756623925151,0.53419336,108970.0,108960.0,0.35190282]
[1756623925969,0.20240847,108970.0,108960.0,0.35190282]
[1756623926230,0.53419336,108970.0,108960.0,0.35190282]
[1756623926645,0.53419336,108970.0,108960.0,0.16834923]
[1756623927082,0.53419336,108970.0,108960.0,0.16834922]
[1756623929644,0.53419336,108970.0,108960.0,0.35190281]
[1756623930762,0.53419336,108970.0,108960.0,0.16834922]
[1756623931767,0.20240847,108970.0,108960.0,0.16834922]
[1756623932219,0.53419336,108970.0,108960.0,0.16834922]
[1756623933835,0.20240847,108970.0,108960.0,0.16834922]
[1756623934139,0.53419336,108970.0,108960.0,0.16834922]
[1756623935528,0.53419336,108970.0,108960.0,0.16834921]
[1756623937096,0.53419336,108970.0,108960.0,0.3519028]
[1756623937711,0.20240847,108970.0,108960.0,0.3519028]
[1756623937913,0.53419336,108970.0,108960.0,0.3519028]
[1756623941051,0.20240847,108970.0,108960.0,0.3519028]
[1756623941249,0.53419336,108970.0,108960.0,0.3519028]
[1756623941481,0.53419336,108970.0,108960.0,0.35190279]
[1756623946024,0.20240847,108970.0,108960.0,0.35190279]
[1756623946239,0.53419336,108970.0,108960.0,0.35190279]
[1756623946843,0.53419336,108970.0,108960.0,0.42250279]
[1756623947496,0.53419336,108970.0,108960.0,0.57606279]
[1756623950045,0.20240847,108970.0,108960.0,0.57606279]
[1756623950238,0.53419336,108970.0,108960.0,0.57606279]
[1756623950993,0.53419336,108970.0,108960.0,0.57606278]
[1756623951582,0.53419336,108970.0,108960.0,0.39250919]
[1756623953134,0.52932838,108970.0,108960.0,0.39250919]
[1756623953909,0.52932838,108970.0,108960.0,0.39250918]
[1756623954914,0.52932838,108970.0,108960.0,0.57606277]
[1756623956251,0.52932838,108970.0,108960.0,0.23894918]
[1756623956457,0.52932838,108970.0,108960.0,0.39246918]
[1756623957252,0.52932838,108970.0,108960.0,0.57602277]
[1756623957903,0.52932838,108970.0,108960.0,0.53476051]
[1756623958904,0.52932838,108970.0,108960.0,0.19768692]
[1756623959101,0.52932838,108970.0,108960.0,0.35120692]
[1756623960369,0.52932838,108970.0,108960.0,0.23881271]
[1756623960576,0.52932838,108970.0,108960.0,0.3923327]
[1756623960899,0.19754349,108970.0,108960.0,0.57588629]
[1756623961162,0.52932838,108970.0,108960.0,0.65678746]
[1756623961373,0.52932838,108970.0,108960.0,0.57588629]
[1756623962200,0.19754349,108970.0,108960.0,0.57588629]
[1756623962403,0.52932838,108970.0,108960.0,0.57588629]
[1756623962780,0.19754349,108970.0,108960.0,0.57588629]
[1756623962977,0.52932838,108970.0,108960.0,0.57588629]
[1756623963344,0.52932838,108970.0,108960.0,0.57588628]
[1756623964556,0.19754349,108970.0,108960.0,0.57588628]
[1756623964713,0.52932838,108970.0,108960.0,0.57588628]
[1756623964937,0.52932838,108970.0,108960.0,0.57588627]
[1756623965511,0.51664686,108980.0,108970.0,0.18353675]
[1756623965735,0.20213898,108980.0,108970.0,0.28304064]
[1756623965951,0.86570876,108980.0,108970.0,0.28304063]
[1756623966200,0.53392387,108980.0,108970.0,0.31062963]
[1756623966329,0.53392387,108980.0,108970.0,0.39892595]
[1756623966684,0.85760071,108980.0,108970.0,0.43192584]
[1756623966823,0.85669855,108980.0,108970.0,0.43192583]
[1756623967030,0.85669855,108980.0,108970.0,0.43392583]
[1756623967238,0.19312877,108980.0,108970.0,0.43392583]
[1756623967480,0.85669855,108980.0,108970.0,0.40092592]
[1756623970524,0.85669855,108980.0,108970.0,0.40092591]
[1756623970525,0.19312877,108980.0,108970.0,0.40092591]
[1756623970743,0.85669855,108980.0,108970.0,0.40092591]
[1756623972843,0.19312877,108980.0,108970.0,0.40092591]
[1756623973095,0.85669855,108980.0,108970.0,0.40092591]
[1756623974870,0.85669855,108980.0,108970.0,0.4009259]
[1756623975698,0.18396756,108980.0,108970.0,0.4009259]
[1756623975849,0.51575245,108980.0,108970.0,0.4009259]
[1756623976085,0.18396756,108980.0,108970.0,0.4009259]
[1756623976300,0.51575245,108980.0,108970.0,0.40092589]
[1756623979664,0.51575245,108980.0,108970.0,0.40092588]
[1756623979812,0.18396756,108980.0,108970.0,0.40092588]
[1756623980018,0.51575245,108980.0,108970.0,0.40092588]
[1756623980995,0.18396756,108980.0,108970.0,0.40092588]
[1756623981198,0.51575245,108980.0,108970.0,0.40092588]
[1756623985365,0.33223254,108980.0,108970.0,0.40092588]
[1756623986221,0.33223254,108980.0,108970.0,0.40092587]
[1756623986522,0.51575245,108980.0,108970.0,0.40092587]
[1756623986834,0.33223254,108980.0,108970.0,0.40092587]
[1756623987652,0.51575245,108980.0,108970.0,0.40092587]
[1756623991187,0.33223254,108980.0,108970.0,0.40092587]
[1756623992018,0.00044765,108980.0,108970.0,0.40092587]
[1756623992332,0.51575245,108980.0,108970.0,0.40092587]
[1756623994192,0.33223254,108980.0,108970.0,0.40092587]
[1756623994397,0.51575245,108980.0,108970.0,0.40092587]
[1756623994798,0.51575245,108980.0,108970.0,0.40092586]
[1756623997378,0.51575245,108980.0,108970.0,0.45048081]
[1756623998558,0.18396756,108980.0,108970.0,0.45048081]
[1756623998764,0.51575245,108980.0,108970.0,0.45048081]
[1756623999568,0.33223254,108980.0,108970.0,0.45048081]
[1756624000398,0.51575245,108980.0,108970.0,0.4504808]
[1756624001223,0.33223254,108980.0,108970.0,0.4504808]
[1756624001614,0.51575245,108980.0,108970.0,0.4504808]
[1756624002411,0.51575245,108980.0,108970.0,0.6039208]
[1756624002628,0.84753734,108980.0,108970.0,0.41837405]
[1756624002838,0.84753734,108980.0,108970.0,0.5987208]
[1756624003452,0.84753734,108980.0,108970.0,0.4452808]
[1756624003660,0.84753734,108980.0,108970.0,0.5987208]
[1756624004677,0.18396756,108980.0,108970.0,0.6016808]
[1756624005013,0.84753734,108980.0,108970.0,0.60168079]
[1756624007368,0.84753734,108980.0,108970.0,0.60371079]
[1756624011650,0.84753734,108980.0,108970.0,0.60371078]
[1756624012183,0.18396756,108980.0,108970.0,0.60371078]
[1756624012455,0.51575245,108980.0,108970.0,0.60371078]
[1756624012862,0.51575245,108980.0,108970.0,0.45027078]
[1756624013046,0.51575245,108980.0,108970.0,0.60371078]
[1756624020987,0.51575245,108980.0,108970.0,0.60371077]
[1756624024503,0.18396756,108980.0,108970.0,0.60371077]
[1756624024883,0.51575245,108980.0,108970.0,0.60371077]
[1756624026537,0.18396756,108980.0,108970.0,0.60371077]
[1756624026752,0.51575245,108980.0,108970.0,0.60371077]
[1756624027014,0.18396756,108980.0,108970.0,0.60371077]
[1756624027159,0.51575245,108980.0,108970.0,0.60371077]
[1756624028736,0.51575245,108980.0,108970.0,0.60371076]
[1756624029744,0.18396756,108980.0,108970.0,0.60371076]
[1756624029952,0.51575245,108980.0,108970.0,0.60371076]
[1756624035108,0.33223254,108980.0,108970.0,0.60371076]
[1756624035609,0.00044765,108980.0,108970.0,0.60371076]
[1756624036183,0.51575245,108980.0,108970.0,0.60371076]
[1756624036411,0.5153048,108980.0,108970.0,0.55415581]
[1756624036773,0.5153048,108980.0,108970.0,0.5541558]
[1756624037169,0.33178489,108980.0,108970.0,0.5541558]
[1756624040055,0.33178489,108980.0,108970.0,0.6247158]
[1756624043188,0.5153048,108980.0,108970.0,0.4712758]
[1756624043425,0.5153048,108980.0,108970.0,0.6248358]
[1756624045096,0.33178489,108980.0,108970.0,0.6248358]
[1756624046341,0.33178489,108980.0,108970.0,0.67439075]
[1756624046555,0.19328992,108990.0,108970.0,0.67439074]
[1756624046757,0.33178489,108980.0,108970.0,0.42785073]
[1756624046991,0.33178489,108980.0,108970.0,0.55378173]
[1756624047127,0.33178489,108980.0,108970.0,0.58136773]
[1756624047348,0.33174489,108980.0,108970.0,0.58136773]
[1756624047714,0.33178489,108980.0,108970.0,0.58136773]
[1756624047949,0.33178489,108980.0,108970.0,0.58036773]
[1756624048629,0.33178489,108980.0,108970.0,0.67234774]
[1756624048868,0.33178489,108980.0,108970.0,0.67334774]
[1756624049480,0.08675914,108980.0,108970.0,0.62379279]
[1756624049691,0.19328992,108990.0,108970.0,0.62479279]
[1756624049845,0.33178489,108980.0,108970.0,0.37829278]
[1756624050059,0.19328992,108990.0,108980.0,0.18351991]
[1756624050279,0.54230845,108990.0,108980.0,0.30222486]
[1756624050655,0.54230845,108990.0,108980.0,0.30544486]
[1756624050863,0.54230845,108990.0,108980.0,0.33303186]
[1756624053791,0.54230845,108990.0,108980.0,0.48647186]
[1756624054265,0.21052356,108990.0,108980.0,0.48647186]
[1756624054507,0.54230845,108990.0,108980.0,0.48647186]
[1756624054721,0.54230845,108990.0,108980.0,0.48647185]
[1756624056750,0.54230783,108990.0,108980.0,0.48647185]
[1756624059306,0.21052294,108990.0,108980.0,0.40574185]
[1756624059461,0.54230783,108990.0,108980.0,0.55918185]
[1756624059685,0.54230783,108990.0,108980.0,0.55918184]
[1756624060646,0.54230783,108990.0,108980.0,0.55918183]
[1756624061585,0.21052294,108990.0,108980.0,0.55918183]
[1756624061790,0.54230783,108990.0,108980.0,0.55918183]
[1756624063757,0.5422419,108990.0,108980.0,0.55918183]
[1756624063959,0.5422419,108990.0,108980.0,0.55918182]
[1756624065543,0.21045649,108990.0,108980.0,0.55918182]
[1756624065756,0.54224138,108990.0,108980.0,0.55918182]
[1756624066569,0.54224128,108990.0,108980.0,0.55918182]
[1756624070614,0.54224128,108990.0,108980.0,0.40574182]
[1756624070792,0.54224128,108990.0,108980.0,0.55918182]
[1756624071218,0.21045639,108990.0,108980.0,0.55918182]
[1756624071444,0.54224128,108990.0,108980.0,0.55918182]
[1756624072001,0.54224128,108990.0,108980.0,0.40574182]
[1756624072205,0.54224128,108990.0,108980.0,0.55918182]
[1756624072621,0.54224128,108990.0,108980.0,0.55918181]
[1756624073708,0.54224128,108990.0,108980.0,0.40574181]
[1756624074015,0.54224128,108990.0,108980.0,0.55918181]
[1756624074624,0.54224128,108990.0,108980.0,0.53478057]
[1756624077417,0.54224115,108990.0,108980.0,0.53478057]
[1756624078229,0.54224114,108990.0,108980.0,0.53478057]
[1756624083201,0.02695318,108990.0,108980.0,0.53478057]
[1756624083401,0.54224114,108990.0,108980.0,0.53478057]
[1756624083610,0.54224114,108990.0,108980.0,0.62307688]
[1756624086977,0.54224145,108990.0,108980.0,0.62307688]
[1756624088988,0.01763257,108990.0,108980.0,0.62307688]
[1756624089210,0.53292053,108990.0,108980.0,0.62307688]
[1756624089942,0.54205618,108990.0,108980.0,0.62303687]
[1756624090570,0.54205618,108990.0,108980.0,0.53474055]
[1756624090964,0.21027129,108990.0,108980.0,0.53474055]
[1756624091193,0.54205618,108990.0,108980.0,0.53474055]
[1756624091627,0.00913565,108990.0,108980.0,0.53474055]
[1756624091854,0.19263872,108990.0,108980.0,0.53474055]
[1756624091971,0.51528796,108990.0,108980.0,0.62303687]
[1756624092189,0.51528796,108990.0,108980.0,0.62303686]
[1756624093406,0.51528796,108990.0,108980.0,0.62165947]
[1756624093834,0.51528796,108990.0,108980.0,0.62165946]
[1756624094217,0.52468979,108990.0,108980.0,0.62165946]
[1756624095231,0.1929049,108990.0,108980.0,0.62165946]
[1756624095587,0.52468979,108990.0,108980.0,0.62165946]
[1756624096020,0.1929049,108990.0,108980.0,0.62165946]
[1756624096233,0.52468979,108990.0,108980.0,0.62165946]
[1756624098413,0.52468979,108990.0,108980.0,0.53336314]
[1756624102399,0.52468979,108990.0,108980.0,0.53336313]
[1756624105284,0.1929049,108990.0,108980.0,0.53336313]
[1756624105489,0.52468979,108990.0,108980.0,0.53336313]
[1756624105699,0.52468979,108990.0,108980.0,0.37996313]
[1756624105912,0.52468979,108990.0,108980.0,0.53336313]
[1756624106634,0.52468979,108990.0,108980.0,0.62165945]
[1756624106883,0.52468979,108990.0,108980.0,0.62165944]
[1756624107286,0.52468979,108990.0,108980.0,0.53336312]
[1756624107526,0.52468979,108990.0,108980.0,0.19107321]
[1756624107730,0.87370828,108990.0,108980.0,0.19107321]
[1756624107850,0.87370828,108990.0,108980.0,0.34447321]
[1756624108727,0.2101385,108990.0,108980.0,0.34447321]
[1756624108935,0.54192339,108990.0,108980.0,0.34447321]
[1756624109297,0.61962902,108990.0,108980.0,0.34447321]
[1756624110610,0.95141391,108990.0,108980.0,0.34447321]
[1756624111042,0.9514089,108990.0,108980.0,0.19107321]
[1756624111254,0.9514089,108990.0,108980.0,0.31688621]
[1756624111414,0.9789999,108990.0,108980.0,0.31688621]
[1756624113405,0.64721501,108990.0,108980.0,0.31688621]
[1756624116845,0.31543012,108990.0,108980.0,0.31688621]
[1756624117047,0.64721501,108990.0,108980.0,0.31688621]
[1756624117977,0.64720774,108990.0,108980.0,0.31688621]
[1756624118462,0.64720774,108990.0,108980.0,0.3168862]
[1756624119180,0.97899263,108990.0,108980.0,0.3168862]
[1756624121698,0.97899172,108990.0,108980.0,0.3168862]
[1756624122580,0.97899169,108990.0,108980.0,0.3168862]
[1756624123490,0.97899169,108990.0,108980.0,0.3199962]
[1756624128208,0.97899169,108990.0,108980.0,0.1665962]
[1756624128542,0.97899169,108990.0,108980.0,0.3199562]
[1756624128950,0.97899318,108990.0,108980.0,0.3199562]
[1756624131354,0.97899318,108990.0,108980.0,0.3219562]
[1756624131710,0.90128755,108990.0,108980.0,0.3219562]
[1756624131905,0.56950266,108990.0,108980.0,0.3219562]
[1756624132662,0.56950364,108990.0,108980.0,0.3219562]
[1756624138625,0.23771875,108990.0,108980.0,0.3219562]
[1756624138805,0.56950364,108990.0,108980.0,0.3199562]
[1756624139214,0.65779996,108990.0,108980.0,0.3199562]
[1756624140304,0.65779996,108990.0,108980.0,0.1665962]
[1756624140513,0.98958485,108990.0,108980.0,0.3199162]
[1756624142102,0.98959574,108990.0,108980.0,0.3199162]
[1756624143298,0.98959574,108990.0,108980.0,0.3219162]
[1756624144259,0.32602596,108990.0,108980.0,0.3219162]
[1756624144460,0.98959574,108990.0,108980.0,0.3219162]
[1756624146796,0.65781085,108990.0,108980.0,0.3219162]
[1756624152009,0.65781085,108990.0,108980.0,0.1685962]
[1756624152266,0.65781085,108990.0,108980.0,0.3219162]
[1756624152848,0.65781117,108990.0,108980.0,0.3219162]
[1756624158301,0.65781117,108990.0,108980.0,0.32054418]
[1756624160165,0.65781126,108990.0,108980.0,0.32054417]
[1756624160575,0.32602637,108990.0,108980.0,0.32054417]
[1756624160781,0.65781126,108990.0,108980.0,0.32054417]
[1756624163488,0.32602637,108990.0,108980.0,0.32054417]
[1756624163749,0.64057711,108990.0,108980.0,0.32054417]
[1756624163965,0.65781133,108990.0,108980.0,0.32054417]
[1756624165757,0.56951501,108990.0,108980.0,0.32054417]
[1756624165973,0.54192401,108990.0,108980.0,0.32054417]
[1756624167438,0.54192157,108990.0,108980.0,0.32054417]